[Event "GrandPrix_29.05"]
[Site "Chess.com"]
[Date "2020.05.29"]
[Round "6"]
[White "ploky25"]
[Black "Bulldog167"]
[Result "0-1"]
[WhiteElo "2153"]
[BlackElo "2424"]
[TimeControl "600+2"]
[EndTime "12:04:43 PDT"]
[Termination "Bulldog167 won on time"]

1. d4 {[%clk 0:10:01]} 1... Nf6 {[%clk 0:09:58.9]} 2. c4 {[%clk 0:10:01.1]} 2...
g6 {[%clk 0:09:59.7]} 3. Nc3 {[%clk 0:10:01]} 3... Bg7 {[%clk 0:09:57.2]} 4. e4
{[%clk 0:10:00.8]} 4... d6 {[%clk 0:09:57.8]} 5. Nf3 {[%clk 0:10:01.2]} 5... O-O
{[%clk 0:09:58.8]} 6. Be2 {[%clk 0:10:01.9]} 6... e5 {[%clk 0:09:58.9]} 7. d5
{[%clk 0:10:01.5]} 7... a5 {[%clk 0:09:54.4]} 8. Bg5 {[%clk 0:10:01.2]} 8... Na6
{[%clk 0:09:41.7]} 9. Nd2 {[%clk 0:10:01.2]} 9... Qe8 {[%clk 0:09:33.8]} 10. O-O
{[%clk 0:09:56.4]} 10... Nd7 {[%clk 0:09:31.7]} 11. a3 {[%clk 0:09:41.6]} 11...
Nb6 {[%clk 0:08:46.2]} 12. Be3 {[%clk 0:09:10]} 12... f5 {[%clk 0:08:30.2]} 13.
f3 {[%clk 0:08:38.8]} 13... a4 {[%clk 0:08:17.6]} 14. Bxb6 {[%clk 0:08:26.8]}
14... cxb6 {[%clk 0:08:19.5]} 15. Nxa4 {[%clk 0:08:23.8]} 15... Bh6 {[%clk
0:08:20.7]} 16. Nc3 {[%clk 0:08:07.7]} 16... Nc5 {[%clk 0:08:03.1]} 17. Ra2
{[%clk 0:07:29.6]} 17... Bd7 {[%clk 0:07:33.5]} 18. b4 {[%clk 0:07:13.2]} 18...
Na4 {[%clk 0:07:34.3]} 19. Ndb1 {[%clk 0:07:12.7]} 19... Be3+ {[%clk 0:07:09.7]}
20. Kh1 {[%clk 0:07:11.8]} 20... Bd4 {[%clk 0:06:29.9]} 21. Qc1 {[%clk
0:06:57.4]} 21... Nxc3 {[%clk 0:06:25.7]} 22. Nxc3 {[%clk 0:06:55.7]} 22... Qe7
{[%clk 0:06:11.5]} 23. Bd3 {[%clk 0:06:43.9]} 23... f4 {[%clk 0:05:55.4]} 24.
Nb5 {[%clk 0:05:31.9]} 24... Bxb5 {[%clk 0:05:39.4]} 25. cxb5 {[%clk 0:05:32.1]}
25... Rfc8 {[%clk 0:05:40.2]} 26. Rc2 {[%clk 0:05:25.2]} 26... Rxc2 {[%clk
0:05:40.6]} 27. Bxc2 {[%clk 0:05:14.4]} 27... Rc8 {[%clk 0:05:30]} 28. Qb1
{[%clk 0:04:52.9]} 28... Qc7 {[%clk 0:05:20.4]} 29. Bb3 {[%clk 0:04:48.8]} 29...
Qc3 {[%clk 0:05:20.5]} 30. Qa2 {[%clk 0:03:27.9]} 30... h5 {[%clk 0:04:25.6]}
31. Rd1 {[%clk 0:02:57.9]} 31... g5 {[%clk 0:03:59.9]} 32. Qb1 {[%clk 0:02:49]}
32... Kf7 {[%clk 0:03:32.4]} 33. Rd3 {[%clk 0:02:47.3]} 33... Qc1+ {[%clk
0:03:12.9]} 34. Qxc1 {[%clk 0:02:29.3]} 34... Rxc1+ {[%clk 0:03:14.8]} 35. Bd1
{[%clk 0:02:29.5]} 35... g4 {[%clk 0:03:06.2]} 36. Rd2 {[%clk 0:01:57.6]} 36...
Ra1 {[%clk 0:02:31.6]} 37. a4 {[%clk 0:01:57.1]} 37... Bc3 {[%clk 0:02:02.7]}
38. Rd3 {[%clk 0:01:56.6]} 38... Bxb4 {[%clk 0:02:04.1]} 39. Kg1 {[%clk
0:01:49.2]} 39... Kf6 {[%clk 0:02:02.9]} 40. Kf1 {[%clk 0:01:48.4]} 40... Kg5
{[%clk 0:02:02]} 41. Ke2 {[%clk 0:01:42.4]} 41... Ra2+ {[%clk 0:01:53.4]} 42.
Kf1 {[%clk 0:01:43.1]} 42... Bc5 {[%clk 0:01:54.6]} 43. Be2 {[%clk 0:01:36.5]}
43... Rxa4 {[%clk 0:01:53.6]} 44. Rd1 {[%clk 0:01:36.7]} 44... Ra2 {[%clk
0:01:50.1]} 45. Rb1 {[%clk 0:01:27.6]} 45... h4 {[%clk 0:00:56.3]} 46. h3 {[%clk
0:01:24.8]} 46... gxh3 {[%clk 0:00:57.3]} 47. gxh3 {[%clk 0:01:25.4]} 47... Kf6
{[%clk 0:00:58.9]} 48. Rd1 {[%clk 0:01:20.9]} 48... Ra8 {[%clk 0:00:57.7]} 49.
Ke1 {[%clk 0:01:18.1]} 49... Be3 {[%clk 0:00:47.7]} 50. Bf1 {[%clk 0:01:09.5]}
50... Rg8 {[%clk 0:00:47.7]} 51. Ra1 {[%clk 0:01:03]} 51... Rc8 {[%clk 0:00:38]}
52. Bd3 {[%clk 0:01:01.7]} 52... Rc3 {[%clk 0:00:35.1]} 53. Be2 {[%clk
0:00:59.1]} 53... Bd4 {[%clk 0:00:26.6]} 54. Rb1 {[%clk 0:00:57]} 54... Ra3
{[%clk 0:00:25.9]} 55. Kf1 {[%clk 0:00:42]} 55... Ra8 {[%clk 0:00:24.9]} 56. Ke1
{[%clk 0:00:40.9]} 56... Rg8 {[%clk 0:00:24.7]} 57. Bf1 {[%clk 0:00:41.5]} 57...
Rg1 {[%clk 0:00:23.8]} 58. Ke2 {[%clk 0:00:41.9]} 58... Rh1 {[%clk 0:00:23.3]}
59. Rb3 {[%clk 0:00:35.2]} 59... Rh2+ {[%clk 0:00:23.4]} 60. Ke1 {[%clk
0:00:34.2]} 60... Be3 {[%clk 0:00:18.1]} 61. Rd3 {[%clk 0:00:20.2]} 61... Rb2
{[%clk 0:00:14.8]} 62. Ra3 {[%clk 0:00:19.6]} 62... Rb1+ {[%clk 0:00:14.3]} 63.
Ke2 {[%clk 0:00:20]} 63... Rxb5 {[%clk 0:00:15.6]} 64. Ra2 {[%clk 0:00:15.9]}
64... Rb1 {[%clk 0:00:15]} 65. Bg2 {[%clk 0:00:07.4]} 65... b5 {[%clk
0:00:14.6]} 66. Kd3 {[%clk 0:00:08.2]} 66... b4 {[%clk 0:00:12.8]} 67. Re2
{[%clk 0:00:04.5]} 67... Rc1 {[%clk 0:00:10.8]} 68. Rb2 {[%clk 0:00:03.7]} 68...
Rc3+ {[%clk 0:00:10.3]} 69. Ke2 {[%clk 0:00:04.4]} 69... b3 {[%clk 0:00:11.2]}
70. Kd1 {[%clk 0:00:05.3]} 70... Rc1+ {[%clk 0:00:12]} 71. Ke2 {[%clk
0:00:05.5]} 71... Rc2+ {[%clk 0:00:13.2]} 0-1

[Event "GrandPrix_29.05"]
[Site "Chess.com"]
[Date "2020.05.29"]
[Round "6"]
[White "Ward-Tsh"]
[Black "AliKa2810"]
[Result "0-1"]
[WhiteElo "2149"]
[BlackElo "2148"]
[TimeControl "600+2"]
[EndTime "12:04:49 PDT"]
[Termination "AliKa2810 won on time"]

1. e4 {[%clk 0:10:01.9]} 1... e5 {[%clk 0:10:00.1]} 2. Nf3 {[%clk 0:10:02.6]}
2... Nf6 {[%clk 0:10:01]} 3. Nxe5 {[%clk 0:09:59.4]} 3... d6 {[%clk 0:10:01.6]}
4. Nf3 {[%clk 0:10:00.6]} 4... Nxe4 {[%clk 0:10:02.8]} 5. d4 {[%clk 0:10:01.9]}
5... d5 {[%clk 0:10:03.2]} 6. Bd3 {[%clk 0:10:02.6]} 6... Bd6 {[%clk 0:10:04.3]}
7. O-O {[%clk 0:10:03.4]} 7... O-O {[%clk 0:10:05.7]} 8. c4 {[%clk 0:10:04.2]}
8... c6 {[%clk 0:10:05.7]} 9. Re1 {[%clk 0:10:04.1]} 9... Bf5 {[%clk 0:09:56.5]}
10. Qc2 {[%clk 0:10:04.2]} 10... Na6 {[%clk 0:09:43.3]} 11. a3 {[%clk
0:10:00.7]} 11... Re8 {[%clk 0:09:27.2]} 12. Nc3 {[%clk 0:08:39.3]} 12... Bg4
{[%clk 0:07:39.8]} 13. Ne5 {[%clk 0:08:06]} 13... Bxe5 {[%clk 0:06:39.1]} 14.
dxe5 {[%clk 0:08:06]} 14... Nxc3 {[%clk 0:06:40.3]} 15. Qxc3 {[%clk 0:08:06.8]}
15... d4 {[%clk 0:06:18.3]} 16. Qc2 {[%clk 0:08:04]} 16... Qh4 {[%clk
0:06:15.6]} 17. Bf4 {[%clk 0:07:59.5]} 17... Nc5 {[%clk 0:06:12.8]} 18. Bg3
{[%clk 0:07:54.6]} 18... Qh5 {[%clk 0:06:12.8]} 19. f3 {[%clk 0:07:46]} 19...
Be6 {[%clk 0:06:09.2]} 20. Bf1 {[%clk 0:07:32.6]} 20... Rad8 {[%clk 0:06:07.5]}
21. b4 {[%clk 0:07:29.5]} 21... d3 {[%clk 0:06:06.1]} 22. Qd1 {[%clk 0:07:28.1]}
22... Na6 {[%clk 0:06:03.5]} 23. Re3 {[%clk 0:07:20.7]} 23... Bxc4 {[%clk
0:06:00.4]} 24. Rc1 {[%clk 0:07:06.3]} 24... Bb5 {[%clk 0:05:27.4]} 25. Bxd3
{[%clk 0:06:59.5]} 25... Qh6 {[%clk 0:05:00.5]} 26. f4 {[%clk 0:06:55.6]} 26...
Nc7 {[%clk 0:05:00.1]} 27. Qf1 {[%clk 0:05:28.4]} 27... Nd5 {[%clk 0:04:56.7]}
28. Rf3 {[%clk 0:05:18.9]} 28... Nc7 {[%clk 0:03:56.7]} 29. Rd1 {[%clk
0:04:46.8]} 29... Ba4 {[%clk 0:03:52.9]} 30. Re1 {[%clk 0:04:42.1]} 30... Ne6
{[%clk 0:03:50.1]} 31. f5 {[%clk 0:04:15.5]} 31... Nd4 {[%clk 0:03:50.9]} 32.
Rf2 {[%clk 0:04:16.8]} 32... Bb5 {[%clk 0:03:47.7]} 33. Bxb5 {[%clk 0:04:10.1]}
33... cxb5 {[%clk 0:03:49.6]} 34. h3 {[%clk 0:03:37.7]} 34... Qc6 {[%clk
0:03:35.4]} 35. Kh2 {[%clk 0:03:24.8]} 35... h6 {[%clk 0:03:34.7]} 36. Rf4
{[%clk 0:03:11]} 36... Qc2 {[%clk 0:03:07.8]} 37. f6 {[%clk 0:02:52.5]} 37... g6
{[%clk 0:03:05.1]} 38. Rfe4 {[%clk 0:02:38.4]} 38... Ne6 {[%clk 0:02:15.5]} 39.
Qxb5 {[%clk 0:02:21.1]} 39... b6 {[%clk 0:02:03.2]} 40. R1e2 {[%clk 0:02:10.8]}
40... Qd1 {[%clk 0:01:59]} 41. Qc4 {[%clk 0:01:45.4]} 41... Rc8 {[%clk
0:01:55.8]} 42. Qa2 {[%clk 0:01:28.7]} 42... Rc3 {[%clk 0:01:49.3]} 43. R4e3
{[%clk 0:00:59.2]} 43... Rec8 {[%clk 0:01:43.1]} 44. Rxc3 {[%clk 0:00:57.6]}
44... Rxc3 {[%clk 0:01:43.2]} 45. Rd2 {[%clk 0:00:49.4]} 45... Qf1 {[%clk
0:01:12.6]} 46. Rf2 {[%clk 0:00:50]} 46... Qc1 {[%clk 0:00:53.5]} 47. a4 {[%clk
0:00:23.5]} 47... Qg5 {[%clk 0:00:30]} 48. Rf3 {[%clk 0:00:24.5]} 48... Rxf3
{[%clk 0:00:27.6]} 49. gxf3 {[%clk 0:00:26.4]} 49... h5 {[%clk 0:00:24.2]} 50.
h4 {[%clk 0:00:25.2]} 50... Qe3 {[%clk 0:00:21.8]} 51. Qf2 {[%clk 0:00:18.4]}
51... Qb3 {[%clk 0:00:20.8]} 52. f4 {[%clk 0:00:12.8]} 52... Qxb4 {[%clk
0:00:18.7]} 53. f5 {[%clk 0:00:13.2]} 53... gxf5 {[%clk 0:00:14.1]} 54. Qxf5
{[%clk 0:00:15.1]} 54... Qd2+ {[%clk 0:00:13.7]} 55. Kh3 {[%clk 0:00:15.7]}
55... Qd1 {[%clk 0:00:14.7]} 56. Kh2 {[%clk 0:00:05.8]} 56... a6 {[%clk
0:00:15.2]} 57. Qe4 {[%clk 0:00:04.1]} 57... b5 {[%clk 0:00:09]} 58. Qa8+ {[%clk
0:00:04.9]} 58... Kh7 {[%clk 0:00:09.8]} 59. Qe4+ {[%clk 0:00:05.8]} 59... Kh8
{[%clk 0:00:10.6]} 60. Qa8+ {[%clk 0:00:05.9]} 60... Kh7 {[%clk 0:00:09.3]} 61.
axb5 {[%clk 0:00:06.9]} 61... Qe2+ {[%clk 0:00:08.6]} 62. Qg2 {[%clk 0:00:06]}
62... Qxg2+ {[%clk 0:00:09]} 63. Kxg2 {[%clk 0:00:07.9]} 63... axb5 {[%clk
0:00:10.6]} 64. Kf3 {[%clk 0:00:08.4]} 64... Kg6 {[%clk 0:00:12.1]} 65. Ke4
{[%clk 0:00:09.5]} 65... Nc5+ {[%clk 0:00:12.2]} 66. Kd5 {[%clk 0:00:09.4]}
66... Ne6 {[%clk 0:00:12.8]} 67. Ke4 {[%clk 0:00:07.4]} 67... b4 {[%clk
0:00:12.4]} 68. Be1 {[%clk 0:00:08]} 68... b3 {[%clk 0:00:13.5]} 69. Bc3 {[%clk
0:00:08.9]} 69... Nc5+ {[%clk 0:00:14.4]} 70. Ke3 {[%clk 0:00:08.4]} 70... Na4
{[%clk 0:00:15.3]} 71. Kd2 {[%clk 0:00:03.7]} 71... b2 {[%clk 0:00:11.9]} 72.
Bxb2 {[%clk 0:00:02.9]} 72... Nxb2 {[%clk 0:00:13.1]} 0-1

[Event "GrandPrix_29.05"]
[Site "Chess.com"]
[Date "2020.05.29"]
[Round "6"]
[White "tacticthunder"]
[Black "imdvb6307"]
[Result "1/2-1/2"]
[WhiteElo "2184"]
[BlackElo "2122"]
[TimeControl "600+2"]
[EndTime "12:04:54 PDT"]
[Termination "Game drawn by repetition"]

1. e4 {[%clk 0:09:43.6]} 1... Nc6 {[%clk 0:09:59.3]} 2. d4 {[%clk 0:09:25.4]}
2... d5 {[%clk 0:09:58.5]} 3. exd5 {[%clk 0:09:25.4]} 3... Qxd5 {[%clk
0:09:58.6]} 4. Nf3 {[%clk 0:09:26.2]} 4... e5 {[%clk 0:09:58.7]} 5. Nc3 {[%clk
0:09:07.5]} 5... Bb4 {[%clk 0:09:57.9]} 6. Bd2 {[%clk 0:09:08.7]} 6... Bxc3
{[%clk 0:09:57.7]} 7. Bxc3 {[%clk 0:09:10.6]} 7... e4 {[%clk 0:09:58.4]} 8. Ne5
{[%clk 0:07:49.6]} 8... Nxe5 {[%clk 0:09:57.9]} 9. dxe5 {[%clk 0:07:51.5]} 9...
Ne7 {[%clk 0:09:59]} 10. Qh5 {[%clk 0:07:03]} 10... O-O {[%clk 0:09:08.1]} 11.
Be2 {[%clk 0:06:48.3]} 11... Qe6 {[%clk 0:07:37]} 12. O-O {[%clk 0:06:39.6]}
12... Nd5 {[%clk 0:07:31.9]} 13. Bc4 {[%clk 0:05:22]} 13... Qc6 {[%clk
0:07:31.4]} 14. Bxd5 {[%clk 0:05:18.6]} 14... Qxd5 {[%clk 0:07:31.4]} 15. Rad1
{[%clk 0:05:12.5]} 15... Qxa2 {[%clk 0:07:03.1]} 16. Rfe1 {[%clk 0:05:07.4]}
16... Qe6 {[%clk 0:06:36.7]} 17. Rxe4 {[%clk 0:04:27.1]} 17... Qg6 {[%clk
0:06:36.5]} 18. Qxg6 {[%clk 0:03:24.6]} 18... hxg6 {[%clk 0:06:36.3]} 19. Rc4
{[%clk 0:03:22.7]} 19... c6 {[%clk 0:06:28]} 20. Bb4 {[%clk 0:03:13.8]} 20...
Be6 {[%clk 0:05:58.3]} 21. Rcd4 {[%clk 0:03:07.7]} 21... Rfc8 {[%clk 0:05:58.5]}
22. Bd6 {[%clk 0:03:01.9]} 22... c5 {[%clk 0:05:37.7]} 23. Ra4 {[%clk
0:02:34.7]} 23... a5 {[%clk 0:05:16.4]} 24. Rda1 {[%clk 0:02:32.5]} 24... b6
{[%clk 0:05:16.2]} 25. h3 {[%clk 0:02:25.1]} 25... Bd7 {[%clk 0:05:03.4]} 26.
Rc4 {[%clk 0:02:22.6]} 26... a4 {[%clk 0:04:55.2]} 27. g4 {[%clk 0:02:21.6]}
27... Ra7 {[%clk 0:04:48.2]} 28. f4 {[%clk 0:02:00.3]} 28... Rca8 {[%clk
0:04:47.4]} 29. Rc3 {[%clk 0:02:00.1]} 29... Ra5 {[%clk 0:04:32.7]} 30. Rca3
{[%clk 0:01:17]} 30... Rc8 {[%clk 0:04:14.4]} 31. c4 {[%clk 0:00:59.2]} 31... b5
{[%clk 0:03:07.1]} 32. b4 {[%clk 0:00:54.9]} 32... cxb4 {[%clk 0:02:59.5]} 33.
Bxb4 {[%clk 0:00:56.8]} 33... Raa8 {[%clk 0:02:55.2]} 34. c5 {[%clk 0:00:53.5]}
34... Bc6 {[%clk 0:02:54.7]} 35. Rd1 {[%clk 0:00:50]} 35... Rd8 {[%clk
0:02:55.1]} 36. Rad3 {[%clk 0:00:50.7]} 36... Rxd3 {[%clk 0:02:45.1]} 37. Rxd3
{[%clk 0:00:52.6]} 37... Kf8 {[%clk 0:02:45.8]} 38. Kf2 {[%clk 0:00:44.1]} 38...
Ke7 {[%clk 0:02:45.1]} 39. Rd6 {[%clk 0:00:43.5]} 39... Ra6 {[%clk 0:02:34.4]}
40. f5 {[%clk 0:00:35.4]} 40... gxf5 {[%clk 0:02:31.9]} 41. gxf5 {[%clk
0:00:37.3]} 41... a3 {[%clk 0:02:29.8]} 42. Bxa3 {[%clk 0:00:24.9]} 42... Rxa3
{[%clk 0:02:30.4]} 43. Rxc6 {[%clk 0:00:25.8]} 43... Rxh3 {[%clk 0:02:27.3]} 44.
Rc7+ {[%clk 0:00:25.4]} 44... Ke8 {[%clk 0:02:26.7]} 45. Rb7 {[%clk 0:00:15.7]}
45... Rh5 {[%clk 0:02:25.4]} 46. Ke3 {[%clk 0:00:14.4]} 46... Rxf5 {[%clk
0:02:24.6]} 47. Ke4 {[%clk 0:00:15]} 47... Rf1 {[%clk 0:02:24.7]} 48. c6 {[%clk
0:00:16]} 48... Kd8 {[%clk 0:02:18.4]} 49. Kd5 {[%clk 0:00:11.4]} 49... g5
{[%clk 0:02:09.4]} 50. Rxb5 {[%clk 0:00:08.9]} 50... g4 {[%clk 0:02:05.3]} 51.
Rb8+ {[%clk 0:00:08.3]} 51... Kc7 {[%clk 0:02:03.9]} 52. Rb7+ {[%clk 0:00:10.2]}
52... Kc8 {[%clk 0:02:03.9]} 53. Rb4 {[%clk 0:00:12.1]} 53... g3 {[%clk
0:02:02]} 54. Rg4 {[%clk 0:00:12.1]} 54... Rf3 {[%clk 0:02:02.7]} 55. Kd6 {[%clk
0:00:10.7]} 55... Rd3+ {[%clk 0:02:03.2]} 56. Ke7 {[%clk 0:00:11.3]} 56... Rf3
{[%clk 0:01:54.9]} 57. Kd6 {[%clk 0:00:11.9]} 57... Rd3+ {[%clk 0:01:52.4]} 58.
Kc5 {[%clk 0:00:11.4]} 58... Kc7 {[%clk 0:01:43.7]} 59. Rg7 {[%clk 0:00:11.2]}
59... Rc3+ {[%clk 0:01:38.2]} 60. Kd5 {[%clk 0:00:12.3]} 60... Rxc6 {[%clk
0:01:14.3]} 61. Rxf7+ {[%clk 0:00:11.6]} 61... Kb6 {[%clk 0:01:15.5]} 62. e6
{[%clk 0:00:12.4]} 62... Rc5+ {[%clk 0:01:14.3]} 63. Kd6 {[%clk 0:00:12.1]}
63... Rg5 {[%clk 0:01:13.8]} 64. e7 {[%clk 0:00:09.4]} 64... Rg6+ {[%clk
0:01:09.2]} 65. Kd7 {[%clk 0:00:09.4]} 65... g2 {[%clk 0:01:08.2]} 66. e8=Q
{[%clk 0:00:08.3]} 66... g1=Q {[%clk 0:01:08.3]} 67. Qb8+ {[%clk 0:00:07.3]}
67... Ka6 {[%clk 0:01:08.9]} 68. Qc8+ {[%clk 0:00:06.4]} 68... Kb6 {[%clk
0:01:01.5]} 69. Qc7+ {[%clk 0:00:06.8]} 69... Ka6 {[%clk 0:01:01.2]} 70. Qc4+
{[%clk 0:00:07.9]} 70... Kb6 {[%clk 0:00:59.4]} 71. Qb4+ {[%clk 0:00:08]} 71...
Ka6 {[%clk 0:00:58]} 72. Qa4+ {[%clk 0:00:09.9]} 72... Kb6 {[%clk 0:00:57.6]}
73. Qb3+ {[%clk 0:00:11.8]} 73... Ka6 {[%clk 0:00:56.1]} 74. Qc4+ {[%clk
0:00:12.2]} 74... Kb6 {[%clk 0:00:56.4]} 75. Qb4+ {[%clk 0:00:11.5]} 75... Ka6
{[%clk 0:00:56.9]} 76. Qa3+ {[%clk 0:00:09.2]} 76... Kb6 {[%clk 0:00:57.1]} 77.
Qb2+ {[%clk 0:00:09.6]} 77... Ka6 {[%clk 0:00:55.2]} 78. Qe2+ {[%clk 0:00:09.2]}
78... Kb6 {[%clk 0:00:52.7]} 79. Qb2+ {[%clk 0:00:07.6]} 79... Ka6 {[%clk
0:00:52.4]} 80. Qa2+ {[%clk 0:00:05.8]} 80... Kb6 {[%clk 0:00:52.5]} 81. Qb3+
{[%clk 0:00:07.7]} 81... Ka6 {[%clk 0:00:52.9]} 82. Qa4+ {[%clk 0:00:09.6]}
82... Kb6 {[%clk 0:00:53.4]} 83. Qb4+ {[%clk 0:00:11.5]} 1/2-1/2

[Event "GrandPrix_29.05"]
[Site "Chess.com"]
[Date "2020.05.29"]
[Round "6"]
[White "Spartakus1975"]
[Black "GeorgMeier"]
[Result "1-0"]
[WhiteElo "2618"]
[BlackElo "2611"]
[TimeControl "600+2"]
[EndTime "12:04:55 PDT"]
[Termination "Spartakus1975 won by resignation"]

1. e4 {[%clk 0:10:00.1]} 1... e6 {[%clk 0:10:01.3]} 2. d4 {[%clk 0:09:56.9]}
2... d5 {[%clk 0:09:52.6]} 3. exd5 {[%clk 0:09:56]} 3... exd5 {[%clk 0:09:52.9]}
4. Nf3 {[%clk 0:09:57.1]} 4... Bf5 {[%clk 0:09:50.5]} 5. c4 {[%clk 0:09:33.9]}
5... Bxb1 {[%clk 0:09:50.6]} 6. Rxb1 {[%clk 0:09:18]} 6... Bb4+ {[%clk
0:09:51.8]} 7. Bd2 {[%clk 0:09:17.9]} 7... Bxd2+ {[%clk 0:09:50.7]} 8. Qxd2
{[%clk 0:09:17.9]} 8... Nf6 {[%clk 0:09:52.1]} 9. Bd3 {[%clk 0:09:08]} 9... dxc4
{[%clk 0:09:47.7]} 10. Bxc4 {[%clk 0:09:03.4]} 10... O-O {[%clk 0:09:48.3]} 11.
O-O {[%clk 0:09:03.3]} 11... Nbd7 {[%clk 0:09:41.6]} 12. Rfe1 {[%clk 0:08:56.8]}
12... c6 {[%clk 0:09:39.1]} 13. Bb3 {[%clk 0:08:40.1]} 13... Rc8 {[%clk
0:09:07.9]} 14. h3 {[%clk 0:08:28.8]} 14... Nb6 {[%clk 0:09:01.5]} 15. Re5
{[%clk 0:08:21.7]} 15... Nbd5 {[%clk 0:08:52.6]} 16. Rbe1 {[%clk 0:08:20]} 16...
Rc7 {[%clk 0:08:48.2]} 17. Nh4 {[%clk 0:07:55]} 17... g6 {[%clk 0:05:01.6]} 18.
Qh6 {[%clk 0:07:35.4]} 18... Kh8 {[%clk 0:05:02.3]} 19. Nf3 {[%clk 0:05:53.3]}
19... Ng8 {[%clk 0:04:55.6]} 20. Qd2 {[%clk 0:05:50.8]} 20... Rd7 {[%clk
0:04:51]} 21. Bxd5 {[%clk 0:05:15.8]} 21... Rxd5 {[%clk 0:04:51.6]} 22. Qb4
{[%clk 0:05:06.1]} 22... Rd7 {[%clk 0:04:30.1]} 23. a3 {[%clk 0:04:35]} 23...
Kg7 {[%clk 0:04:23.8]} 24. Qc3 {[%clk 0:04:22.6]} 24... f6 {[%clk 0:03:15.1]}
25. Re6 {[%clk 0:04:10.9]} 25... Rff7 {[%clk 0:02:26.4]} 26. Re8 {[%clk
0:03:50.8]} 26... Qb6 {[%clk 0:02:21.2]} 27. b4 {[%clk 0:01:57.7]} 27... Ne7
{[%clk 0:01:01.6]} 28. g3 {[%clk 0:00:32.5]} 28... Nd5 {[%clk 0:00:56.7]} 29.
Qc5 {[%clk 0:00:33]} 29... Qxc5 {[%clk 0:00:32.5]} 30. dxc5 {[%clk 0:00:33.3]}
30... Rf8 {[%clk 0:00:24.3]} 31. Nd4 {[%clk 0:00:26.1]} 31... Rxe8 {[%clk
0:00:14.9]} 32. Rxe8 {[%clk 0:00:26.6]} 32... h5 {[%clk 0:00:10.8]} 33. Rb8
{[%clk 0:00:20.1]} 33... Kf7 {[%clk 0:00:10.2]} 34. Nb3 {[%clk 0:00:15.6]} 34...
Rc7 {[%clk 0:00:08]} 35. Na5 {[%clk 0:00:13.2]} 35... b6 {[%clk 0:00:08.9]} 36.
Nc4 {[%clk 0:00:10.8]} 36... bxc5 {[%clk 0:00:07.8]} 37. bxc5 {[%clk 0:00:12.3]}
37... Ne7 {[%clk 0:00:05.8]} 38. Kg2 {[%clk 0:00:09.5]} 38... Ke6 {[%clk
0:00:06.9]} 39. Ne3 {[%clk 0:00:10.6]} 39... Nd5 {[%clk 0:00:06.9]} 40. Nc2
{[%clk 0:00:10.2]} 40... Nc3 {[%clk 0:00:04.4]} 41. Nb4 {[%clk 0:00:06.6]} 41...
Na4 {[%clk 0:00:04.4]} 42. Re8+ {[%clk 0:00:06.1]} 42... Kf7 {[%clk 0:00:04]}
43. Rd8 {[%clk 0:00:05.3]} 43... Nxc5 {[%clk 0:00:04.8]} 44. Rd6 {[%clk
0:00:06.3]} 44... Ne6 {[%clk 0:00:04]} 45. Nxc6 {[%clk 0:00:06.4]} 45... a6
{[%clk 0:00:04.2]} 46. Nb4 {[%clk 0:00:07.3]} 46... a5 {[%clk 0:00:05.6]} 47.
Nc6 {[%clk 0:00:07.2]} 47... a4 {[%clk 0:00:06.8]} 48. Nb4 {[%clk 0:00:08.2]}
48... Rc3 {[%clk 0:00:06.8]} 49. Rd7+ {[%clk 0:00:08.7]} 49... Ke8 {[%clk
0:00:07.8]} 50. Ra7 {[%clk 0:00:08.2]} 50... Nc7 {[%clk 0:00:06.9]} 51. Rxa4
{[%clk 0:00:07.7]} 51... Kd7 {[%clk 0:00:08.3]} 52. Ra7 {[%clk 0:00:08.4]} 52...
Kd6 {[%clk 0:00:09.2]} 53. a4 {[%clk 0:00:08.7]} 53... Rb3 {[%clk 0:00:08.7]}
54. Nc2 {[%clk 0:00:09.7]} 54... Ne6 {[%clk 0:00:08.3]} 55. a5 {[%clk
0:00:09.8]} 55... Rb2 {[%clk 0:00:08.7]} 56. Ne3 {[%clk 0:00:10.1]} 56... Ra2
{[%clk 0:00:09.8]} 57. Ra6+ {[%clk 0:00:08.6]} 57... Kd7 {[%clk 0:00:10]} 58.
Nd5 {[%clk 0:00:08.7]} 58... f5 {[%clk 0:00:10.1]} 59. h4 {[%clk 0:00:07.5]}
59... Ra3 {[%clk 0:00:08.8]} 60. Nb4 {[%clk 0:00:04.1]} 60... f4 {[%clk
0:00:08.7]} 61. Ra7+ {[%clk 0:00:05]} 61... Kd6 {[%clk 0:00:09.9]} 62. a6 {[%clk
0:00:05.7]} 62... f3+ {[%clk 0:00:10.4]} 63. Kh3 {[%clk 0:00:06.7]} 63... Kc5
{[%clk 0:00:11]} 64. Nc2 {[%clk 0:00:06.1]} 64... Ra2 {[%clk 0:00:11.8]} 65. Ne3
{[%clk 0:00:07.4]} 65... Nd4 {[%clk 0:00:11.4]} 66. Rc7+ {[%clk 0:00:07.1]}
66... Kb5 {[%clk 0:00:10.9]} 67. Rd7 {[%clk 0:00:07.9]} 67... Nc6 {[%clk
0:00:10.4]} 68. g4 {[%clk 0:00:05.4]} 68... Rxf2 {[%clk 0:00:10.6]} 69. gxh5
{[%clk 0:00:05.9]} 69... gxh5 {[%clk 0:00:11.2]} 70. a7 {[%clk 0:00:07.2]} 70...
Ra2 {[%clk 0:00:12]} 71. Rd5+ {[%clk 0:00:08]} 71... Kb6 {[%clk 0:00:12.1]} 72.
Rxh5 {[%clk 0:00:08.7]} 72... Ra3 {[%clk 0:00:12.4]} 73. Nc4+ {[%clk 0:00:09.1]}
73... Kxa7 {[%clk 0:00:11.6]} 74. Nxa3 {[%clk 0:00:11]} 74... f2 {[%clk
0:00:12.2]} 75. Kg2 {[%clk 0:00:11.7]} 1-0